[Event "*** MasterClass Titled Tuesday Blitz"]
[Site "Chess.com"]
[Date "2017.09.05"]
[Round "9"]
[White "BartoszSocko"]
[Black "cheese111"]
[Result "1-0"]
[WhiteElo "2653"]
[BlackElo "2335"]
[TimeControl "180+2"]
[EndTime "15:10:56 PDT"]
[Termination "BartoszSocko won by resignation"]

1. e4 {[%clk 0:03:01.9]} 1... d5 {[%clk 0:03:00.8]} 2. exd5 {[%clk 0:03:02.6]}
2... Nf6 {[%clk 0:03:01.7]} 3. d4 {[%clk 0:03:02]} 3... Bg4 {[%clk 0:02:59.9]}
4. Be2 {[%clk 0:03:02.4]} 4... Bxe2 {[%clk 0:03:00.4]} 5. Nxe2 {[%clk
0:03:04.3]} 5... Qxd5 {[%clk 0:03:01.3]} 6. O-O {[%clk 0:03:06.2]} 6... Nc6
{[%clk 0:03:02.8]} 7. Be3 {[%clk 0:03:05.4]} 7... O-O-O {[%clk 0:03:02.5]} 8.
Qc1 {[%clk 0:03:01.1]} 8... e6 {[%clk 0:02:52.6]} 9. c4 {[%clk 0:03:01.8]} 9...
Qh5 {[%clk 0:02:53.4]} 10. Ng3 {[%clk 0:02:50.8]} 10... Qg6 {[%clk 0:02:54.3]}
11. Rd1 {[%clk 0:02:44.8]} 11... h5 {[%clk 0:02:55.2]} 12. h3 {[%clk 0:02:44.2]}
12... Bd6 {[%clk 0:02:51.6]} 13. Nf1 {[%clk 0:02:43.5]} 13... Qf5 {[%clk
0:02:47.4]} 14. Nc3 {[%clk 0:02:42.6]} 14... g5 {[%clk 0:02:35.9]} 15. d5 {[%clk
0:02:43.4]} 15... exd5 {[%clk 0:02:36.9]} 16. cxd5 {[%clk 0:02:45.3]} 16... Ne5
{[%clk 0:02:37]} 17. Qb1 {[%clk 0:02:44.6]} 17... Qd7 {[%clk 0:02:26.4]} 18.
Bxg5 {[%clk 0:02:30]} 18... Rdg8 {[%clk 0:02:23.8]} 19. h4 {[%clk 0:01:58.4]}
19... Nh7 {[%clk 0:02:14.6]} 20. Ne4 {[%clk 0:01:56.6]} 20... f6 {[%clk
0:01:28.3]} 21. f4 {[%clk 0:01:37.2]} 21... Nf3+ {[%clk 0:01:01.4]} 22. gxf3
{[%clk 0:01:35.4]} 22... Bxf4 {[%clk 0:01:02.8]} 23. Kf2 {[%clk 0:01:27.6]}
23... fxg5 {[%clk 0:01:02.9]} 24. d6 {[%clk 0:01:24.2]} 24... gxh4 {[%clk
0:00:47.2]} 25. dxc7 {[%clk 0:00:49]} 25... Qxc7 {[%clk 0:00:48]} 26. Qd3 {[%clk
0:00:27.2]} 26... Qb6+ {[%clk 0:00:43.2]} 27. Ke1 {[%clk 0:00:26.3]} 27... Rg2
{[%clk 0:00:24.2]} 28. Qc3+ {[%clk 0:00:27.2]} 28... Bc7 {[%clk 0:00:14.3]} 29.
Qxh8+ {[%clk 0:00:29.1]} 29... Bd8 {[%clk 0:00:16.2]} 30. Rac1+ {[%clk
0:00:28.9]} 30... Kb8 {[%clk 0:00:17.3]} 31. Qxd8+ {[%clk 0:00:28.9]} 1-0

[Event "*** MasterClass Titled Tuesday Blitz"]
[Site "Chess.com"]
[Date "2017.09.05"]
[Round "9"]
[White "HKBurwell"]
[Black "workhard91"]
[Result "1-0"]
[WhiteElo "2359"]
[BlackElo "2294"]
[TimeControl "180+2"]
[EndTime "15:11:18 PDT"]
[Termination "HKBurwell won on time"]

1. d4 {[%clk 0:03:01.9]} 1... Nf6 {[%clk 0:03:01]} 2. c4 {[%clk 0:03:03.1]} 2...
g6 {[%clk 0:03:02.3]} 3. Nc3 {[%clk 0:03:04.3]} 3... Bg7 {[%clk 0:03:03.7]} 4.
e4 {[%clk 0:03:05.2]} 4... d6 {[%clk 0:03:05.1]} 5. h3 {[%clk 0:03:06]} 5... O-O
{[%clk 0:03:06.4]} 6. Bg5 {[%clk 0:03:06.5]} 6... c5 {[%clk 0:03:03.7]} 7. d5
{[%clk 0:03:06.2]} 7... b5 {[%clk 0:02:56.5]} 8. cxb5 {[%clk 0:03:01.6]} 8... a6
{[%clk 0:02:57]} 9. a4 {[%clk 0:02:52.7]} 9... Qa5 {[%clk 0:02:57.6]} 10. Bd2
{[%clk 0:02:44.1]} 10... Qb4 {[%clk 0:02:32]} 11. Bd3 {[%clk 0:02:43.8]} 11...
c4 {[%clk 0:02:23.4]} 12. Bc2 {[%clk 0:02:35.9]} 12... axb5 {[%clk 0:02:04.1]}
13. Nxb5 {[%clk 0:02:17.3]} 13... Qc5 {[%clk 0:01:58.5]} 14. Be3 {[%clk
0:02:14.4]} 14... Qb4+ {[%clk 0:01:56.1]} 15. Bd2 {[%clk 0:01:57.6]} 15... Qc5
{[%clk 0:01:54.1]} 16. Nf3 {[%clk 0:01:56.5]} 16... Bd7 {[%clk 0:01:37.7]} 17.
Be3 {[%clk 0:01:50]} 17... Qb4+ {[%clk 0:01:38.3]} 18. Bd2 {[%clk 0:01:50.6]}
18... Qc5 {[%clk 0:01:31.5]} 19. Nc3 {[%clk 0:01:45.3]} 19... Na6 {[%clk
0:01:29.9]} 20. O-O {[%clk 0:01:40.8]} 20... Rfb8 {[%clk 0:01:30.6]} 21. Be3
{[%clk 0:01:19.2]} 21... Qc8 {[%clk 0:01:13.8]} 22. Bd4 {[%clk 0:01:13.8]} 22...
Nb4 {[%clk 0:00:27.7]} 23. e5 {[%clk 0:01:05.7]} 23... Nfxd5 {[%clk 0:00:14.6]}
24. Nxd5 {[%clk 0:01:05.3]} 24... Nxd5 {[%clk 0:00:15.9]} 25. exd6 {[%clk
0:01:03.4]} 25... Bxd4 {[%clk 0:00:10.4]} 26. Qxd4 {[%clk 0:01:05.3]} 26... Nb4
{[%clk 0:00:10.7]} 27. Be4 {[%clk 0:00:47.1]} 27... Rxa4 {[%clk 0:00:09.3]} 28.
Rxa4 {[%clk 0:00:43.5]} 28... Bxa4 {[%clk 0:00:11.2]} 29. dxe7 {[%clk
0:00:42.1]} 29... Qe8 {[%clk 0:00:07.5]} 30. Ra1 {[%clk 0:00:29.1]} 30... Bb5
{[%clk 0:00:06.1]} 31. Ra7 {[%clk 0:00:27.8]} 31... Nc6 {[%clk 0:00:05.2]} 32.
Bxc6 {[%clk 0:00:28.6]} 32... Bxc6 {[%clk 0:00:07.1]} 33. Ne5 {[%clk 0:00:28]}
1-0

[Event "*** MasterClass Titled Tuesday Blitz"]
[Site "Chess.com"]
[Date "2017.09.05"]
[Round "9"]
[White "Art10ECHR"]
[Black "goingin33"]
[Result "1-0"]
[WhiteElo "2231"]
[BlackElo "2262"]
[TimeControl "180+2"]
[EndTime "15:11:19 PDT"]
[Termination "Art10ECHR won by checkmate"]

1. e4 {[%clk 0:03:01.9]} 1... c5 {[%clk 0:03:00.4]} 2. Nf3 {[%clk 0:03:02.1]}
2... Nc6 {[%clk 0:03:01.8]} 3. Bb5 {[%clk 0:03:02.7]} 3... d6 {[%clk 0:03:02.7]}
4. O-O {[%clk 0:03:02.1]} 4... Bd7 {[%clk 0:03:03.7]} 5. Re1 {[%clk 0:03:03.7]}
5... Nf6 {[%clk 0:03:04.6]} 6. c3 {[%clk 0:03:03.8]} 6... a6 {[%clk 0:03:04.6]}
7. Bf1 {[%clk 0:03:05.4]} 7... Bg4 {[%clk 0:03:04.9]} 8. d4 {[%clk 0:03:06.4]}
8... cxd4 {[%clk 0:03:02.6]} 9. cxd4 {[%clk 0:03:08.3]} 9... Bxf3 {[%clk
0:03:04]} 10. gxf3 {[%clk 0:03:09.3]} 10... e6 {[%clk 0:03:04.9]} 11. d5 {[%clk
0:03:06.1]} 11... Nb8 {[%clk 0:03:04.6]} 12. dxe6 {[%clk 0:02:52.4]} 12... fxe6
{[%clk 0:03:06.6]} 13. Qb3 {[%clk 0:02:52.4]} 13... Qd7 {[%clk 0:03:07.1]} 14.
Bh3 {[%clk 0:02:47.9]} 14... Kf7 {[%clk 0:03:06.9]} 15. Nc3 {[%clk 0:02:45.5]}
15... Nc6 {[%clk 0:03:01.4]} 16. Bg5 {[%clk 0:02:38.3]} 16... Nd4 {[%clk
0:03:00.9]} 17. Qd1 {[%clk 0:02:35.3]} 17... Nc6 {[%clk 0:02:58.3]} 18. Nd5
{[%clk 0:02:33]} 18... Be7 {[%clk 0:02:48.9]} 19. Nb6 {[%clk 0:02:32.3]} 19...
Qc7 {[%clk 0:02:50]} 20. Nxa8 {[%clk 0:02:32.9]} 20... Rxa8 {[%clk 0:02:51.9]}
21. Rc1 {[%clk 0:02:31.1]} 21... e5 {[%clk 0:02:50.7]} 22. Bxf6 {[%clk
0:02:26.5]} 22... Bxf6 {[%clk 0:02:51.6]} 23. Qd5+ {[%clk 0:02:27.5]} 23... Kf8
{[%clk 0:02:48.4]} 24. Qe6 {[%clk 0:02:18.6]} 24... Qe7 {[%clk 0:02:44]} 25.
Qxe7+ {[%clk 0:02:13.4]} 25... Bxe7 {[%clk 0:02:46]} 26. Kg2 {[%clk 0:02:11]}
26... Bg5 {[%clk 0:02:45.3]} 27. Rc4 {[%clk 0:02:08.1]} 27... Ke7 {[%clk
0:02:45.1]} 28. Kg3 {[%clk 0:01:51.5]} 28... Bf4+ {[%clk 0:02:39.7]} 29. Kg4
{[%clk 0:01:46.9]} 29... Rf8 {[%clk 0:02:35.8]} 30. Bf1 {[%clk 0:01:46.8]} 30...
Rf6 {[%clk 0:02:35.4]} 31. h4 {[%clk 0:01:42.1]} 31... Rg6+ {[%clk 0:02:23.1]}
32. Kh3 {[%clk 0:01:42.7]} 32... Rg1 {[%clk 0:02:25.1]} 33. Rd1 {[%clk
0:01:23.7]} 33... Rh1+ {[%clk 0:02:24.1]} 34. Kg2 {[%clk 0:01:23.6]} 34... Rh2+
{[%clk 0:02:25.5]} 35. Kg1 {[%clk 0:01:24.3]} 35... Rxh4 {[%clk 0:02:26.1]} 36.
Rc3 {[%clk 0:01:20.7]} 36... Rh6 {[%clk 0:02:19.2]} 37. Bxa6 {[%clk 0:01:20]}
37... Nd4 {[%clk 0:02:15]} 38. Bc4 {[%clk 0:01:09.6]} 38... Rg6+ {[%clk
0:02:07.9]} 39. Kf1 {[%clk 0:01:10.6]} 39... Rh6 {[%clk 0:02:09.1]} 40. Ke1
{[%clk 0:01:05.6]} 40... b5 {[%clk 0:01:59.6]} 41. Bf1 {[%clk 0:01:06.1]} 41...
b4 {[%clk 0:02:00.7]} 42. Rc7+ {[%clk 0:01:02.8]} 42... Kd8 {[%clk 0:02:01.6]}
43. Rxg7 {[%clk 0:01:00.6]} 43... Nxf3+ {[%clk 0:02:02]} 44. Ke2 {[%clk
0:01:01.8]} 44... Nd4+ {[%clk 0:02:02.3]} 45. Kd3 {[%clk 0:01:01.8]} 45... b3
{[%clk 0:01:40.8]} 46. axb3 {[%clk 0:01:02]} 46... Nxb3 {[%clk 0:01:42.8]} 47.
Kc3 {[%clk 0:01:00.8]} 47... Nc5 {[%clk 0:01:40.3]} 48. Ra1 {[%clk 0:00:58.8]}
48... Bd2+ {[%clk 0:01:34.8]} 49. Kc4 {[%clk 0:00:56]} 49... d5+ {[%clk
0:01:25.5]} 50. Kxd5 {[%clk 0:00:52.7]} 50... Na6 {[%clk 0:01:25.1]} 51. Rxa6
{[%clk 0:00:51.8]} 51... Rxa6 {[%clk 0:01:24.4]} 52. Bxa6 {[%clk 0:00:53.7]}
52... Be3 {[%clk 0:01:25.3]} 53. fxe3 {[%clk 0:00:53.5]} 53... h5 {[%clk
0:01:26.8]} 54. Ke6 {[%clk 0:00:49.6]} 54... h4 {[%clk 0:01:28]} 55. Rd7+ {[%clk
0:00:49.8]} 55... Ke8 {[%clk 0:01:28.8]} 56. Rh7 {[%clk 0:00:51]} 56... Kf8
{[%clk 0:01:30.3]} 57. b4 {[%clk 0:00:51]} 57... h3 {[%clk 0:01:31.3]} 58. Rxh3
{[%clk 0:00:52.2]} 58... Kg7 {[%clk 0:01:32.1]} 59. b5 {[%clk 0:00:54.1]} 59...
Kg6 {[%clk 0:01:33.4]} 60. b6 {[%clk 0:00:56]} 60... Kg5 {[%clk 0:01:34.9]} 61.
b7 {[%clk 0:00:57.4]} 61... Kg4 {[%clk 0:01:36.8]} 62. Rh8 {[%clk 0:00:58.1]}
62... Kg3 {[%clk 0:01:37.9]} 63. Rf8 {[%clk 0:00:58.7]} 63... Kg2 {[%clk
0:01:38.4]} 64. b8=Q {[%clk 0:01:00.6]} 64... Kg3 {[%clk 0:01:40.2]} 65. Qe8
{[%clk 0:01:01.7]} 65... Kg2 {[%clk 0:01:41.8]} 66. Qg6+ {[%clk 0:01:03.3]}
66... Kh2 {[%clk 0:01:43.7]} 67. Rh8# {[%clk 0:01:04.8]} 1-0

[Event "*** MasterClass Titled Tuesday Blitz"]
[Site "Chess.com"]
[Date "2017.09.05"]
[Round "9"]
[White "ViIIagra"]
[Black "danyuffa"]
[Result "1-0"]
[WhiteElo "2673"]
[BlackElo "2582"]
[TimeControl "180+2"]
[EndTime "15:11:22 PDT"]
[Termination "ViIIagra won by resignation"]

1. e4 {[%clk 0:03:01.9]} 1... c6 {[%clk 0:02:56.5]} 2. d4 {[%clk 0:03:01.8]}
2... d5 {[%clk 0:02:50]} 3. e5 {[%clk 0:03:03.3]} 3... Bf5 {[%clk 0:02:49.9]} 4.
h4 {[%clk 0:03:04.7]} 4... a6 {[%clk 0:02:50.2]} 5. g4 {[%clk 0:03:03.9]} 5...
Bd7 {[%clk 0:02:50.9]} 6. Be3 {[%clk 0:03:01.6]} 6... h5 {[%clk 0:02:41.3]} 7.
gxh5 {[%clk 0:03:02.3]} 7... Bf5 {[%clk 0:02:39.2]} 8. Be2 {[%clk 0:02:59.1]}
8... e6 {[%clk 0:02:37.9]} 9. Nd2 {[%clk 0:02:55.8]} 9... Nd7 {[%clk 0:02:32.2]}
10. Nf1 {[%clk 0:02:55.9]} 10... c5 {[%clk 0:02:32]} 11. Ng3 {[%clk 0:02:54.4]}
11... cxd4 {[%clk 0:02:27.1]} 12. Bxd4 {[%clk 0:02:56.3]} 12... Bh7 {[%clk
0:02:25.1]} 13. Nf3 {[%clk 0:02:57.3]} 13... Ne7 {[%clk 0:02:22]} 14. c3 {[%clk
0:02:47.8]} 14... Nc6 {[%clk 0:02:17.7]} 15. Qd2 {[%clk 0:02:47.1]} 15... Rc8
{[%clk 0:01:54.2]} 16. Qf4 {[%clk 0:02:45]} 16... Nxd4 {[%clk 0:01:39.8]} 17.
cxd4 {[%clk 0:02:46.9]} 17... Qb6 {[%clk 0:01:40.8]} 18. b3 {[%clk 0:02:43.6]}
18... Rc2 {[%clk 0:01:23.7]} 19. Kf1 {[%clk 0:02:24.9]} 19... Nb8 {[%clk
0:01:14.2]} 20. Ng5 {[%clk 0:02:23]} 20... Bg8 {[%clk 0:01:12.8]} 21. Bd3 {[%clk
0:02:23.3]} 21... Rc3 {[%clk 0:01:11.5]} 22. Rd1 {[%clk 0:02:24.3]} 22... Nc6
{[%clk 0:01:09.3]} 23. Ne2 {[%clk 0:02:25.2]} 23... Qa5 {[%clk 0:00:47.5]} 24.
Rh3 {[%clk 0:02:18.9]} 24... Rxd3 {[%clk 0:00:44.5]} 25. Rhxd3 {[%clk
0:02:17.7]} 25... Rxh5 {[%clk 0:00:37.9]} 26. Rf3 {[%clk 0:02:14]} 26... Qxa2
{[%clk 0:00:31.7]} 27. Nxe6 {[%clk 0:02:12.2]} 27... Qc2 {[%clk 0:00:25.9]} 28.
Rc1 {[%clk 0:02:10.9]} 28... Qe4 {[%clk 0:00:25.2]} 29. Nxf8 {[%clk 0:01:48.4]}
29... Rxh4 {[%clk 0:00:22.6]} 30. Qxe4 {[%clk 0:01:37.2]} 30... dxe4 {[%clk
0:00:23.7]} 31. Rf4 {[%clk 0:01:36.9]} 31... Rh1+ {[%clk 0:00:24.4]} 32. Ng1
{[%clk 0:01:37.9]} 32... Kxf8 {[%clk 0:00:17.6]} 33. Rxe4 {[%clk 0:01:37.3]}
33... f6 {[%clk 0:00:16.1]} 34. e6 {[%clk 0:01:38.6]} 34... Bh7 {[%clk
0:00:14.2]} 35. Re3 {[%clk 0:01:36.3]} 35... Rh5 {[%clk 0:00:11]} 36. Rc5 {[%clk
0:01:36.2]} 36... Rxc5 {[%clk 0:00:11.3]} 37. dxc5 {[%clk 0:01:38.1]} 37... Ke7
{[%clk 0:00:12.7]} 38. Ne2 {[%clk 0:01:39.7]} 38... Bf5 {[%clk 0:00:12.6]} 39.
Nf4 {[%clk 0:01:40.5]} 39... Nb4 {[%clk 0:00:10.7]} 40. Nh5 {[%clk 0:01:41.2]}
40... g5 {[%clk 0:00:08.7]} 41. Nxf6 {[%clk 0:01:40.9]} 41... Kxf6 {[%clk
0:00:04.3]} 42. e7 {[%clk 0:01:42.8]} 42... Bd7 {[%clk 0:00:04.3]} 43. e8=Q
{[%clk 0:01:44.7]} 43... Bxe8 {[%clk 0:00:05.5]} 44. Rxe8 {[%clk 0:01:46.6]}
44... Nd3 {[%clk 0:00:06.9]} 45. Rc8 {[%clk 0:01:45.7]} 45... Ke5 {[%clk
0:00:06.9]} 46. c6 {[%clk 0:01:43]} 46... bxc6 {[%clk 0:00:07.8]} 47. Rxc6
{[%clk 0:01:44.9]} 47... Nb4 {[%clk 0:00:09]} 48. Rb6 {[%clk 0:01:45.8]} 48...
a5 {[%clk 0:00:07.6]} 49. Rb5+ {[%clk 0:01:47]} 49... Kd4 {[%clk 0:00:08]} 50.
Rxa5 {[%clk 0:01:48.9]} 50... g4 {[%clk 0:00:09.4]} 51. Rg5 {[%clk 0:01:49.7]}
1-0

[Event "*** MasterClass Titled Tuesday Blitz"]
[Site "Chess.com"]
[Date "2017.09.05"]
[Round "9"]
[White "Noukii"]
[Black "temiksmozg"]
[Result "1-0"]
[WhiteElo "2661"]
[BlackElo "2451"]
[TimeControl "180+2"]
[EndTime "15:11:26 PDT"]
[Termination "Noukii won by resignation"]

1. d4 {[%clk 0:03:01.9]} 1... f5 {[%clk 0:03:00.5]} 2. Nc3 {[%clk 0:02:44.2]}
2... Nf6 {[%clk 0:02:57.3]} 3. Bg5 {[%clk 0:02:45]} 3... d5 {[%clk 0:02:58.6]}
4. Bxf6 {[%clk 0:02:46]} 4... exf6 {[%clk 0:03:00.5]} 5. e3 {[%clk 0:02:47.7]}
5... c6 {[%clk 0:02:59.3]} 6. Bd3 {[%clk 0:02:48.7]} 6... Bd6 {[%clk 0:02:47.2]}
7. Qf3 {[%clk 0:02:47.9]} 7... g6 {[%clk 0:02:47.2]} 8. h4 {[%clk 0:02:49.6]}
8... Qe7 {[%clk 0:02:31.5]} 9. h5 {[%clk 0:02:47.9]} 9... Rg8 {[%clk 0:02:30.9]}
10. hxg6 {[%clk 0:02:48.4]} 10... hxg6 {[%clk 0:02:32.8]} 11. Nge2 {[%clk
0:02:41]} 11... Nd7 {[%clk 0:02:33.1]} 12. O-O-O {[%clk 0:02:29.4]} 12... Nf8
{[%clk 0:02:33.2]} 13. Kb1 {[%clk 0:02:23.9]} 13... Ne6 {[%clk 0:02:33]} 14. Qh3
{[%clk 0:02:14]} 14... Ng5 {[%clk 0:02:30.2]} 15. Qh6 {[%clk 0:02:14.7]} 15...
Qg7 {[%clk 0:01:54.9]} 16. Qxg7 {[%clk 0:02:13.8]} 16... Rxg7 {[%clk 0:01:56.8]}
17. Rh8+ {[%clk 0:02:07.3]} 17... Kf7 {[%clk 0:01:39.4]} 18. Na4 {[%clk
0:01:51.1]} 18... Rb8 {[%clk 0:01:30.5]} 19. c4 {[%clk 0:01:48.8]} 19... Ne4
{[%clk 0:01:14.2]} 20. Bxe4 {[%clk 0:01:38.6]} 20... fxe4 {[%clk 0:01:16.1]} 21.
cxd5 {[%clk 0:01:34.6]} 21... Bg4 {[%clk 0:01:11.8]} 22. Rxb8 {[%clk 0:01:35.4]}
22... Bxb8 {[%clk 0:01:13.6]} 23. Re1 {[%clk 0:01:36.5]} 23... cxd5 {[%clk
0:01:01.1]} 24. Nec3 {[%clk 0:01:37.4]} 24... Bd7 {[%clk 0:00:31.4]} 25. Nc5
{[%clk 0:01:35.5]} 25... Bc6 {[%clk 0:00:32.2]} 26. Rh1 {[%clk 0:01:36.9]} 26...
Bd6 {[%clk 0:00:28.9]} 27. b4 {[%clk 0:00:51.7]} 27... b6 {[%clk 0:00:25.9]} 28.
Na6 {[%clk 0:00:52.8]} 28... Bb7 {[%clk 0:00:21.3]} 29. b5 {[%clk 0:00:54.1]}
29... Kg8 {[%clk 0:00:21.9]} 30. Kc2 {[%clk 0:00:49]} 30... Rh7 {[%clk
0:00:22.1]} 31. Rxh7 {[%clk 0:00:50.2]} 31... Kxh7 {[%clk 0:00:24]} 32. Kb3
{[%clk 0:00:51.9]} 32... g5 {[%clk 0:00:21.5]} 33. Nb4 {[%clk 0:00:51.1]} 33...
Bxb4 {[%clk 0:00:22]} 34. Kxb4 {[%clk 0:00:53]} 34... f5 {[%clk 0:00:20.1]} 35.
a4 {[%clk 0:00:54.4]} 35... Kg6 {[%clk 0:00:18]} 36. a5 {[%clk 0:00:55.9]} 36...
bxa5+ {[%clk 0:00:19.4]} 37. Kxa5 {[%clk 0:00:57]} 37... f4 {[%clk 0:00:21.3]}
38. b6 {[%clk 0:00:58]} 38... axb6+ {[%clk 0:00:22.1]} 39. Kxb6 {[%clk
0:00:59.9]} 39... Ba8 {[%clk 0:00:20.7]} 40. Kc5 {[%clk 0:01:01.1]} 40... g4
{[%clk 0:00:15.1]} 41. g3 {[%clk 0:01:01.1]} 41... fxe3 {[%clk 0:00:13.3]} 42.
fxe3 {[%clk 0:01:02.1]} 1-0

[Event "*** MasterClass Titled Tuesday Blitz"]
[Site "Chess.com"]
[Date "2017.09.05"]
[Round "9"]
[White "popov_m"]
[Black "Keaton87"]
[Result "1-0"]
[WhiteElo "2468"]
[BlackElo "2485"]
[TimeControl "180+2"]
[EndTime "15:11:39 PDT"]
[Termination "popov_m won by resignation"]

1. d4 {[%clk 0:03:01.9]} 1... Nf6 {[%clk 0:02:56.4]} 2. Bf4 {[%clk 0:03:02.3]}
2... g6 {[%clk 0:02:53.5]} 3. Nf3 {[%clk 0:03:00.3]} 3... Bg7 {[%clk 0:02:54.4]}
4. e3 {[%clk 0:03:01.3]} 4... O-O {[%clk 0:02:54.1]} 5. Be2 {[%clk 0:03:02.8]}
5... d6 {[%clk 0:02:50.1]} 6. O-O {[%clk 0:03:02.6]} 6... b6 {[%clk 0:02:50.8]}
7. a4 {[%clk 0:03:01.4]} 7... a5 {[%clk 0:02:51.4]} 8. h3 {[%clk 0:03:00.2]}
8... Nbd7 {[%clk 0:02:50.3]} 9. Na3 {[%clk 0:03:00.6]} 9... Bb7 {[%clk
0:02:50.2]} 10. c4 {[%clk 0:02:59.2]} 10... Ne4 {[%clk 0:02:47.5]} 11. Nb5
{[%clk 0:02:55.3]} 11... e5 {[%clk 0:02:38.6]} 12. Bh2 {[%clk 0:02:54.4]} 12...
exd4 {[%clk 0:02:38.4]} 13. exd4 {[%clk 0:02:54.3]} 13... Re8 {[%clk 0:02:38.1]}
14. Qc2 {[%clk 0:02:53.5]} 14... Ndf6 {[%clk 0:02:16.1]} 15. Rfe1 {[%clk
0:02:46.8]} 15... c6 {[%clk 0:02:16.1]} 16. Na3 {[%clk 0:02:40.5]} 16... Ba6
{[%clk 0:02:11.8]} 17. Rad1 {[%clk 0:02:38]} 17... Rc8 {[%clk 0:02:09.9]} 18.
Nd2 {[%clk 0:02:28.8]} 18... d5 {[%clk 0:02:08.6]} 19. Nxe4 {[%clk 0:02:19.1]}
19... Nxe4 {[%clk 0:02:08.2]} 20. Bg4 {[%clk 0:01:52.5]} 20... f5 {[%clk
0:02:07.8]} 21. Bf3 {[%clk 0:01:52.4]} 21... Qd7 {[%clk 0:02:01.2]} 22. Qb3
{[%clk 0:01:43.9]} 22... Bxc4 {[%clk 0:01:35]} 23. Nxc4 {[%clk 0:01:42]} 23...
dxc4 {[%clk 0:01:37]} 24. Qxb6 {[%clk 0:01:39.8]} 24... Nd2 {[%clk 0:01:27]} 25.
Be2 {[%clk 0:01:18.8]} 25... Bh6 {[%clk 0:00:38.7]} 26. Be5 {[%clk 0:01:12.3]}
26... Qd5 {[%clk 0:00:31]} 27. Qb7 {[%clk 0:00:26.1]} 27... Rcd8 {[%clk
0:00:21.4]} 28. Rxd2 {[%clk 0:00:21.5]} 28... Rxe5 {[%clk 0:00:19.8]} 29. Rdd1
{[%clk 0:00:13.3]} 29... Re4 {[%clk 0:00:12.4]} 30. Bf1 {[%clk 0:00:12.7]} 30...
Rxd4 {[%clk 0:00:09.6]} 31. Rxd4 {[%clk 0:00:12.9]} 31... Qxd4 {[%clk
0:00:11.6]} 32. Qa6 {[%clk 0:00:11.5]} 32... Kf8 {[%clk 0:00:09.8]} 33. Bxc4
{[%clk 0:00:12.2]} 33... Qxb2 {[%clk 0:00:04.9]} 34. Qa7 {[%clk 0:00:11.7]}
34... Qg7 {[%clk 0:00:05.7]} 35. Qc5+ {[%clk 0:00:12]} 1-0

[Event "*** MasterClass Titled Tuesday Blitz"]
[Site "Chess.com"]
[Date "2017.09.05"]
[Round "9"]
[White "2L8IWUN"]
[Black "PowerThinking2650"]
[Result "1/2-1/2"]
[WhiteElo "1818"]
[BlackElo "2234"]
[TimeControl "180+2"]
[EndTime "15:11:39 PDT"]
[Termination "Game drawn by repetition"]

1. d4 {[%clk 0:03:01.9]} 1... Nf6 {[%clk 0:03:00.7]} 2. c4 {[%clk 0:03:02.8]}
2... g6 {[%clk 0:03:01.8]} 3. f3 {[%clk 0:02:54.5]} 3... Bg7 {[%clk 0:03:02.3]}
4. e4 {[%clk 0:02:55.4]} 4... d6 {[%clk 0:03:03.4]} 5. Ne2 {[%clk 0:02:55.7]}
5... O-O {[%clk 0:03:04.4]} 6. Be3 {[%clk 0:02:57.1]} 6... c5 {[%clk 0:03:01.1]}
7. Qd2 {[%clk 0:02:53.3]} 7... Nc6 {[%clk 0:02:58.8]} 8. d5 {[%clk 0:02:51.6]}
8... Ne5 {[%clk 0:02:59.2]} 9. Nec3 {[%clk 0:02:53.5]} 9... e6 {[%clk
0:02:55.3]} 10. Be2 {[%clk 0:02:49.2]} 10... exd5 {[%clk 0:02:55.6]} 11. cxd5
{[%clk 0:02:51.1]} 11... a6 {[%clk 0:02:55.9]} 12. a4 {[%clk 0:02:49.8]} 12...
Bd7 {[%clk 0:02:24.9]} 13. O-O {[%clk 0:02:42.6]} 13... b5 {[%clk 0:02:25.9]}
14. axb5 {[%clk 0:02:41]} 14... axb5 {[%clk 0:02:26.9]} 15. Rxa8 {[%clk
0:02:40.6]} 15... Qxa8 {[%clk 0:02:27.7]} 16. Nxb5 {[%clk 0:02:42.5]} 16... Bxb5
{[%clk 0:02:21.7]} 17. Bxb5 {[%clk 0:02:42.9]} 17... Rb8 {[%clk 0:02:22.5]} 18.
Nc3 {[%clk 0:02:39.5]} 18... Qa5 {[%clk 0:02:20.6]} 19. Qe2 {[%clk 0:00:46.7]}
19... h5 {[%clk 0:01:57.1]} 20. h3 {[%clk 0:00:44.8]} 20... Ned7 {[%clk
0:01:38.8]} 21. Rc1 {[%clk 0:00:41.7]} 21... Nb6 {[%clk 0:01:21.1]} 22. Bc6
{[%clk 0:00:37.7]} 22... Qb4 {[%clk 0:01:18.7]} 23. Nb5 {[%clk 0:00:36.2]} 23...
Nc4 {[%clk 0:01:18.9]} 24. Rxc4 {[%clk 0:00:33.8]} 24... Qa5 {[%clk 0:01:13.1]}
25. Nxd6 {[%clk 0:00:33.3]} 25... h4 {[%clk 0:01:09.8]} 26. Rxc5 {[%clk
0:00:31.4]} 26... Qa1+ {[%clk 0:01:08.4]} 27. Rc1 {[%clk 0:00:29]} 27... Rxb2
{[%clk 0:00:58.7]} 28. Rxa1 {[%clk 0:00:26.5]} 28... Rxe2 {[%clk 0:00:59.7]} 29.
Ra8+ {[%clk 0:00:27.7]} 29... Kh7 {[%clk 0:01:00.2]} 30. Bf2 {[%clk 0:00:23.8]}
30... g5 {[%clk 0:00:57.1]} 31. Nxf7 {[%clk 0:00:20]} 31... Kg6 {[%clk
0:00:48.6]} 32. Ne5+ {[%clk 0:00:20.8]} 32... Kh7 {[%clk 0:00:48.5]} 33. Ng4
{[%clk 0:00:21.4]} 33... Nh5 {[%clk 0:00:48]} 34. d6 {[%clk 0:00:21.8]} 34...
Ng3 {[%clk 0:00:43.6]} 35. d7 {[%clk 0:00:22.5]} 35... Bd4 {[%clk 0:00:42.7]}
36. Bxd4 {[%clk 0:00:22.1]} 36... Re1+ {[%clk 0:00:43.1]} 37. Kf2 {[%clk
0:00:22.2]} 37... Re2+ {[%clk 0:00:40]} 38. Kg1 {[%clk 0:00:20]} 38... Re1+
{[%clk 0:00:39.3]} 39. Kf2 {[%clk 0:00:18.5]} 39... Re2+ {[%clk 0:00:39.4]} 40.
Kg1 {[%clk 0:00:17.9]} 40... Re1+ {[%clk 0:00:40.4]} 41. Kf2 {[%clk 0:00:09.8]}
41... Re2+ {[%clk 0:00:39.9]} 42. Kg1 {[%clk 0:00:11.1]} 42... Re1+ {[%clk
0:00:40.5]} 43. Kf2 {[%clk 0:00:12.4]} 43... Re2+ {[%clk 0:00:41.4]} 1/2-1/2